fUST/lending_fUST_20250123
["ID","MTS","AMOUNT","RATE_DAILY","PERIOD"]
[350090599,1737615039114,-151.0,0.000196,2]
[350090600,1737615039124,-151.0,0.00019665,4]
[350090601,1737615039134,-151.0,0.000197,2]
[350090602,1737615039144,-151.0,0.000197,2]
[350090603,1737615039153,-1000.0,0.00019721,2]
[350090604,1737615039162,-1000.0,0.00019721,2]
[350090605,1737615039172,-1000.0,0.00019721,2]
[350090606,1737615039182,-852.01039924,0.00019721,2]
[350090607,1737615039191,-1000.0,0.00019721,2]
[350090608,1737615039200,-1000.0,0.00019721,2]
[350090609,1737615039210,-355.32452937,0.00019721,2]
[350090610,1737615039219,-1000.0,0.00019721,2]
[350090611,1737615039229,-716.81094934,0.00019726,2]
[350090612,1737615039239,-290.41393239,0.00019726,2]
[350090613,1737615039248,-500.0,0.00019726,2]
[350090614,1737615039258,-500.0,0.00019726,2]
[350090615,1737615039267,-500.0,0.00019726,3]
[350090616,1737615039277,-362.24643417,0.00019726,3]
[350090617,1737615039286,-500.0,0.00019726,3]
[350090618,1737615039296,-500.0,0.00019726,3]
[350090619,1737615039305,-188.0,0.00019726,2]
[350090620,1737615039315,-530.91643408,0.00019726,3]
[350090621,1737615039324,-833.2,0.00019726,3]
[350090622,1737615039333,-500.0,0.00019726,3]
[350090623,1737615039343,-500.0,0.00019726,3]
[350090624,1737615039352,-329.4855921,0.00019726,3]
[350090625,1737615039361,-500.0,0.00019726,3]
[350090626,1737615039371,-519.14,0.00019726,3]
[350090627,1737615039381,-801.55,0.00019726,3]
[350090628,1737615039391,-500.0,0.00019726,3]
[350090629,1737615039401,-500.0,0.00019726,3]
[350090630,1737615039410,-500.0,0.00019726,3]
[350090631,1737615039420,-500.0,0.00019726,3]
[350090632,1737615039430,-500.0,0.00019726,3]
[350090633,1737615039439,-282.96,0.00019726,3]
[350090634,1737615039449,-2877.04,0.00019726,2]
[350090635,1737615039459,-500.0,0.00019726,3]
[350090636,1737615039468,-504.15702475,0.00019726,3]
[350090637,1737615039478,-1970.32,0.00019726,2]
[350090638,1737615039488,-8709.02,0.00019726,3]
[350090639,1737615039498,-509.75729526,0.00019726,3]
[350090640,1737615039508,-1710.22,0.00019726,3]
[350090641,1737615039518,-731.23,0.00019726,3]
[350090642,1737615039529,-2911.33,0.00019726,3]
[350090643,1737615039538,-858.94,0.00019726,3]
[350090644,1737615039549,-500.0,0.00019726,3]
[350090645,1737615039558,-3338.86,0.00019726,3]
[350090646,1737615039568,-789.27,0.00019726,3]
[350090647,1737615039578,-759.13,0.00019726,3]
[350090648,1737615039588,-1088.82,0.00019726,3]
[350090649,1737615039598,-1106.41,0.00019726,3]
[350090650,1737615039608,-688.04,0.00019726,3]
[350090651,1737615039618,-500.0,0.00019726,3]
[350090652,1737615039628,-500.0,0.00019726,3]
[350090653,1737615039638,-3718.69,0.00019726,3]
[350090654,1737615039648,-1786.1,0.00019726,3]
[350090655,1737615039661,-500.0,0.00019726,3]
[350090656,1737615039670,-900.72,0.00019726,3]
[350090657,1737615039680,-1180.14,0.00019726,3]
[350090658,1737615039690,-178.64812816,0.00019726,3]
[350090659,1737615039700,-8642.49,0.00019726,3]
[350090660,1737615039710,-500.0,0.00019726,3]
[350090661,1737615039720,-5454.0,0.00019726,3]
[350090662,1737615039730,-925.32,0.00019726,3]
[350090663,1737615039741,-500.0,0.00019726,3]
[350090664,1737615039751,-500.0,0.00019726,3]
[350090665,1737615039761,-596.4,0.00019726,3]
[350090666,1737615039771,-500.0,0.00019726,3]
[350090667,1737615039781,-1172.97,0.00019726,3]
[350090668,1737615039790,-1274.56007118,0.00019726,3]
[350090671,1737615041013,-786.23436532,0.00018978,2]
[350090672,1737615041023,-500.0,0.0001917,2]
[350090673,1737615041042,-176.58071581,0.0001917,2]
[350090674,1737615041052,-602.67495568,0.0001917,2]
[350090675,1737615041062,-500.0,0.0001917,2]
[350090676,1737615041071,-497.81786661,0.0001917,2]
[350090677,1737615041083,-500.0,0.0001917,2]
[350090678,1737615041092,-500.0,0.0001917,2]
[350090679,1737615041103,-500.0,0.0001917,2]
[350090680,1737615041112,-500.0,0.0001917,2]
[350090681,1737615041121,-500.0,0.0001917,2]
[350090682,1737615041130,-500.0,0.0001917,2]
[350090683,1737615041139,-500.0,0.0001917,2]
[350090684,1737615041149,-500.0,0.0001917,2]
[350090685,1737615041159,-500.0,0.0001917,2]
[350090686,1737615041169,-500.0,0.0001917,2]
[350090687,1737615041179,-500.0,0.0001917,2]
[350090688,1737615041188,-500.0,0.0001917,2]
[350090689,1737615041197,-500.0,0.0001917,2]
[350090690,1737615041207,-500.0,0.0001917,2]
[350090691,1737615041216,-500.0,0.0001917,2]
[350090692,1737615041225,-500.0,0.0001917,2]
[350090693,1737615041234,-500.0,0.0001917,2]
[350090694,1737615041243,-500.0,0.0001917,2]
[350090695,1737615041252,-643.26014224,0.0001917,2]
[350090696,1737615041261,-510.34715377,0.0001917,2]
[350090697,1737615041271,-500.0,0.0001917,2]
[350090698,1737615041280,-562.56223574,0.0001917,2]
[350090699,1737615041290,-500.0,0.0001917,2]
[350090700,1737615041299,-500.0,0.0001917,2]
[350090701,1737615041308,-500.0,0.0001917,2]
[350090702,1737615041318,-500.0,0.0001917,2]
[350090703,1737615041329,-500.0,0.0001917,2]
[350090704,1737615041339,-273.90588397,0.0001917,2]
[350090705,1737615041348,-500.0,0.0001917,2]
[350090706,1737615041358,-500.0,0.0001917,2]
[350090707,1737615041368,-500.0,0.0001917,2]
[350090708,1737615041378,-500.0,0.0001917,2]
[350090709,1737615041387,-500.0,0.0001917,2]
[350090710,1737615041397,-500.0,0.0001917,2]
[350090711,1737615041407,-500.0,0.0001917,2]
[350090712,1737615041417,-500.0,0.0001917,2]
[350090713,1737615041427,-381.60328526,0.0001917,2]
[350090737,1737615445665,400.0,0.00013973,2]
[350090813,1737616232891,-342.73397945,0.00016021,2]
[350090814,1737616232900,-342.73397945,0.00016183,2]
[350090816,1737616232910,-300.0,0.0001754,2]
[350090817,1737616232920,-6912.95784397,0.00017541,2]
[350090837,1737616238554,-500.0,0.00017541,2]
[350090838,1737616238590,-1875.43412888,0.00017541,2]
[350090839,1737616238601,-4965.37987732,0.00017541,2]
[350090853,1737616240826,-496.750002,0.00017541,2]
[350090854,1737616240838,-1876.73229566,0.00017541,2]
[350090869,1737616243580,-3988.77323207,0.00017541,2]
[350090870,1737616243636,-495.17738865,0.00017541,2]
[350090871,1737616243647,-3788.79523145,0.00017541,2]
[350090872,1737616243656,-235.517199,0.00017591,2]
[350090873,1737616243666,-221.8869644,0.00017597,2]
[350090874,1737616243683,-371.96890123,0.00018074,2]
[350090875,1737616243697,-414.9,0.0001874,2]
[350090876,1737616243706,-395.0,0.00018826,2]
[350090877,1737616243716,-688.55700491,0.000189,2]
[350090878,1737616243725,-545.90405565,0.000189,2]
[350090879,1737616243735,-500.0,0.00019,2]
[350090880,1737616243744,-711.14533784,0.00019,15]
[350090885,1737616246613,-502.9,0.00019,15]
[350090886,1737616246627,-13907.000145,0.00019,15]
[350090891,1737616365669,400.0,0.00013973,2]
[350090898,1737617223514,400.0,0.00013973,2]
[350090908,1737617296874,4606.95276624,0.000125,2]
[350090935,1737617432879,-1332.57013054,0.00015459,2]
[350090936,1737617432889,-1332.57013054,0.00015615,2]
[350090937,1737617432898,-1384.0904325,0.00016541,2]
[350090938,1737617432907,-176.9467336,0.00016754,7]
[350090939,1737617432917,-5294.03498597,0.00017441,2]
[350090940,1737617432927,-251.979013,0.00017442,2]
[350090941,1737617432938,-300.0,0.0001764,2]
[350090942,1737617432947,-24900.0,0.00017641,2]
[350090943,1737617432956,-616.81743004,0.000187,2]
[350090944,1737617432965,-152.0,0.00018704,2]
[350090945,1737617432974,-412.79,0.0001874,2]
[350090946,1737617432987,-395.0,0.00018806,2]
[350090947,1737617432998,-154.89,0.000189,2]
[350090948,1737617433008,-535.20110981,0.000189,2]
[350090949,1737617433017,-4699.78190129,0.000189,2]
[350090950,1737617433027,-184.56964447,0.000189,2]
[350090951,1737617433037,-500.0,0.00018903,2]
[350090952,1737617433047,-192.04331616,0.00018978,2]
[350090953,1737617433056,-184.56964446,0.00018989,2]
[350090954,1737617433066,-4849.84856204,0.00018999,5]
[350090955,1737617433076,-11632.87628574,0.00019,5]
[350090956,1737617433088,-13336.61569847,0.00019,5]
[350090980,1737618097013,400.0,0.00013973,2]
[350091070,1737618632214,-300.0,0.00016485,2]
[350091072,1737618632224,-300.0,0.00016652,2]
[350091074,1737618632233,-256.101131,0.00017633,2]
[350091076,1737618632242,-300.0,0.00017879,2]
[350091078,1737618632251,-9106.51844529,0.0001788,2]
[350091080,1737618632263,-7965.38476591,0.0001788,2]
[350091082,1737618632272,-563.67840536,0.00017946,2]
[350091084,1737618632282,-398.8765751,0.00018598,2]
[350091086,1737618632292,-107.11282301,0.00018683,2]
[350091609,1737618637997,-716.10693876,0.00018683,2]
[350091611,1737618638007,-65.16599169,0.0001874,2]
[350091718,1737618642979,-345.12700831,0.0001874,2]
[350091719,1737618642989,-395.0,0.00018785,2]
[350091720,1737618642999,-407.57614424,0.000189,2]
[350091721,1737618643008,-154.78,0.000189,2]
[350091722,1737618643018,-1437.62322814,0.00019,15]
[350091723,1737618643032,-8999.84144767,0.00019,15]
[350091724,1737618643083,-2250.47421763,0.00019,15]
[350091744,1737618873675,200.3,0.00015,2]
[350091745,1737618961190,400.0,0.00013973,2]
[350091746,1737619074515,264.0,0.00018,60]
[350091747,1737619232304,160.0,0.00021225,120]
[350091749,1737619291391,160.0,0.00020577,120]
[350091808,1737619832223,-407.264,0.00015998,2]
[350091810,1737619832233,-407.264,0.0001616,2]
[350091812,1737619832243,-258.162191,0.00018036,2]
[350091814,1737619832252,-407.264,0.0001805,2]
[350091816,1737619832262,-159.02299817,0.00018785,2]
[350092366,1737620166690,392.966265,0.00013973,2]
[350093252,1737621006180,31946.03493526,0.00018,30]
[350093267,1737621032345,-654.86091982,0.00015682,2]
[350093268,1737621032401,-2166.87751889,0.00015682,2]
[350093269,1737621032410,-2821.73843871,0.0001584,2]
[350093270,1737621032420,-300.0,0.00015999,2]
[350093271,1737621032430,-1743.48391433,0.00016,2]
[350093272,1737621032440,-1308.16634906,0.00016,2]
[350093282,1737621038615,373.317951,0.00013973,2]
[350093290,1737621040578,-2216.41874408,0.0001584,2]
[350093291,1737621040588,-2216.41874408,0.00016,2]
[350093292,1737621040597,-161.0042395,0.00017132,2]
[350093293,1737621040607,-238.64878,0.00017395,2]
[350093294,1737621040616,-420.0,0.00017492,2]
[350093295,1737621040625,-1930.35859129,0.00017552,2]
[350093297,1737621040636,-4878.72828101,0.00017552,2]
[350093298,1737621040645,-1120.92954311,0.000176,2]
[350093299,1737621040654,-164.6994296,0.00017874,2]
[350093300,1737621040663,-404.235,0.0001805,2]
[350093301,1737621040673,-152.0,0.00018568,2]
[350093302,1737621040682,-154.78,0.000186,2]
[350093303,1737621040691,-395.0,0.00018744,2]
[350093304,1737621040700,-513.3177659,0.00018799,2]
[350093305,1737621040709,-209.94555983,0.000189,2]
[350093306,1737621040719,-271.71742949,0.000189,2]
[350093307,1737621040728,-151.0,0.000189,2]
[350093308,1737621040737,-151.0,0.000189,2]
[350093309,1737621040747,-151.0,0.000189,2]
[350093310,1737621040756,-502.88756924,0.00018903,2]
[350093311,1737621040765,-209.94555981,0.00018979,2]
[350093312,1737621040774,-763.48,0.0001899,3]
[350093313,1737621040783,-19244.54562372,0.00019,15]
[350093314,1737621040792,-20709.77684279,0.00019,2]
[350093315,1737621040801,-151.0,0.00019,2]
[350093316,1737621040813,-177.934324,0.00019,2]
[350093317,1737621040822,-209.94555981,0.00019058,2]
[350093318,1737621040831,-300.0,0.000191,8]
[350093319,1737621040840,-3000.0,0.000191,2]
[350093320,1737621040849,-3000.0,0.0001911,2]
[350093321,1737621040858,-587.0,0.00019125,2]
[350093322,1737621040867,-494.109,0.0001913,2]
[350093323,1737621040876,-209.94555981,0.00019136,2]
[350093324,1737621040885,-500.0,0.00019177,2]
[350093325,1737621040895,-500.0,0.00019177,2]
[350093326,1737621040904,-202.5,0.00019177,2]
[350093327,1737621040913,-500.0,0.00019177,2]
[350093328,1737621040922,-384.06117514,0.00019177,2]
[350093329,1737621040932,-500.0,0.00019177,2]
[350093330,1737621040942,-500.0,0.00019177,2]
[350093331,1737621040951,-500.0,0.00019177,2]
[350093332,1737621040960,-500.0,0.00019177,2]
[350093333,1737621040970,-500.0,0.00019177,2]
[350093334,1737621040979,-500.0,0.00019177,2]
[350093335,1737621040988,-500.0,0.00019177,2]
[350093336,1737621040998,-500.0,0.00019177,2]
[350093337,1737621041007,-477.3905884,0.00019177,2]
[350093338,1737621041016,-500.0,0.00019177,2]
[350093339,1737621041025,-558.05577066,0.00019177,2]
[350093340,1737621041035,-500.0,0.00019177,2]
[350093341,1737621041044,-500.0,0.00019177,2]
[350093342,1737621041053,-500.0,0.00019177,2]
[350093343,1737621041064,-500.0,0.00019177,2]
[350093344,1737621041076,-500.0,0.00019177,2]
[350093345,1737621041086,-500.0,0.00019177,2]
[350093346,1737621041095,-500.0,0.00019177,2]
[350093347,1737621041105,-500.0,0.00019177,2]
[350093348,1737621041114,-500.0,0.00019177,2]
[350093349,1737621041123,-500.0,0.00019177,2]
[350093350,1737621041132,-500.0,0.00019177,2]
[350093351,1737621041142,-500.0,0.00019177,2]
[350093352,1737621041151,-500.0,0.00019177,2]
[350093353,1737621041160,-500.0,0.00019177,2]
[350093354,1737621041169,-500.0,0.00019177,2]
[350093355,1737621041179,-500.0,0.00019177,2]
[350093356,1737621041188,-500.0,0.00019177,2]
[350093357,1737621041197,-500.0,0.00019177,2]
[350093358,1737621041206,-500.0,0.00019177,2]
[350093359,1737621041216,-500.0,0.00019177,2]
[350093360,1737621041226,-500.0,0.00019177,2]
[350093361,1737621041235,-500.0,0.00019177,2]
[350093362,1737621041245,-500.0,0.00019177,2]
[350093363,1737621041254,-500.0,0.00019177,2]
[350093364,1737621041263,-500.0,0.00019177,2]
[350093365,1737621041272,-500.0,0.00019177,2]
[350093366,1737621041281,-500.0,0.00019177,2]
[350093367,1737621041290,-500.0,0.00019177,2]
[350093368,1737621041300,-500.0,0.00019177,2]
[350093369,1737621041311,-393.07832818,0.00019177,2]
[350093381,1737621046283,-424.84278194,0.00018985,2]
[350093382,1737621046293,-106.92167182,0.00019177,2]
[350093383,1737621046302,-500.0,0.00019177,2]
[350093384,1737621046312,-500.0,0.00019177,2]
[350093385,1737621046323,-500.0,0.00019177,2]
[350093386,1737621046332,-500.0,0.00019177,2]
[350093387,1737621046341,-99.23137341,0.00019177,2]
[350093397,1737621466979,1000.0,0.00023,120]
[350093398,1737621626689,-7974.2961515,0.00024,120]
[350093399,1737621626716,-10000.0,0.00024,120]
[350093400,1737621626742,-10000.0,0.00024,120]
[350093409,1737621811274,160.0,0.00023232,120]
[350093410,1737621870754,160.0,0.00023138,120]
[350093411,1737621903137,3163.0424769,0.00024,120]
[350093412,1737621903170,3131.0,0.00024,120]
[350093413,1737621903203,1642.12756115,0.00024,120]
[350093414,1737621906457,1732.98,0.0002359,120]
[350093415,1737621970488,362.902134,0.00013973,2]
[350093416,1737621990526,160.0,0.00023333,120]
[350093433,1737622050915,160.0,0.00022204,120]
[350093434,1737622059670,655.0,0.00024,120]
[350093480,1737622170768,160.0,0.0002399,120]
[350093481,1737622203103,3131.0,0.00024,120]
[350093482,1737622203135,3163.0424769,0.00024,120]
[350093483,1737622203173,1642.12756115,0.00024,120]
[350093484,1737622203203,3762.86,0.00024,120]
[350093485,1737622207642,1732.98,0.0002359,120]
[350093497,1737622232465,-4002.79063979,0.00015274,2]
[350093498,1737622232474,-608.48654717,0.000159,2]
[350093499,1737622232570,-3394.30409262,0.000159,2]
[350093500,1737622232580,-227.598593,0.0001724,2]
[350093501,1737622232589,-300.0,0.00017247,2]
[350093502,1737622232598,-12900.4071442,0.00017248,2]
[350093503,1737622232607,-24900.0,0.00017905,2]
[350093504,1737622232617,-790.70614036,0.00018109,2]
[350093505,1737622232627,-387.055,0.0001822,2]
[350093506,1737622232636,-169.23289803,0.00018626,2]
[350093507,1737622232645,-500.0,0.00018726,7]
[350093508,1737622232654,-500.0,0.00018726,7]
[350093509,1737622232664,-500.0,0.00018726,7]
[350093511,1737622232673,-500.0,0.00018726,7]
[350093512,1737622232682,-500.0,0.00018726,7]
[350093513,1737622232691,-500.0,0.00018726,7]
[350093514,1737622232700,-500.0,0.00018726,7]
[350093515,1737622232709,-500.0,0.00018726,7]
[350093516,1737622232718,-500.0,0.00018726,7]
[350093517,1737622232727,-500.0,0.00018726,7]
[350093518,1737622232737,-500.0,0.00018726,7]
[350093519,1737622232746,-500.0,0.00018726,7]
[350093520,1737622232755,-500.0,0.00018726,7]
[350093521,1737622232765,-500.0,0.00018726,7]
[350093522,1737622232774,-500.0,0.00018726,7]
[350093523,1737622232784,-500.0,0.00018726,7]
[350093524,1737622232793,-500.0,0.00018726,7]
[350093525,1737622232803,-500.0,0.00018726,7]
[350093526,1737622232812,-500.0,0.00018726,7]
[350093527,1737622232827,-500.0,0.00018726,7]
[350093528,1737622232838,-500.0,0.00018726,7]
[350093529,1737622232847,-500.0,0.00018726,7]
[350093530,1737622232857,-500.0,0.00018726,7]
[350093531,1737622232868,-500.0,0.00018726,7]
[350093532,1737622232878,-500.0,0.00018726,7]
[350093533,1737622232888,-500.0,0.00018726,7]
[350093534,1737622232898,-500.0,0.00018726,7]
[350093535,1737622232909,-500.0,0.00018726,7]
[350093536,1737622232919,-500.0,0.00018726,7]
[350093537,1737622232929,-500.0,0.00018726,7]
[350093538,1737622232939,-500.0,0.00018726,7]
[350093539,1737622232949,-500.0,0.00018726,7]
[350093540,1737622232960,-500.0,0.00018726,7]
[350093541,1737622232970,-500.0,0.00018726,7]
[350093542,1737622232980,-500.0,0.00018726,7]
[350093543,1737622232989,-500.0,0.00018726,7]
[350093544,1737622232999,-500.0,0.00018726,7]
[350093545,1737622233009,-500.0,0.00018726,7]
[350093546,1737622233018,-500.0,0.00018726,7]
[350093547,1737622233028,-500.0,0.00018726,7]
[350093548,1737622233037,-500.0,0.00018726,7]
[350093549,1737622233047,-500.0,0.00018726,7]
[350093550,1737622233056,-500.0,0.00018726,7]
[350093551,1737622233066,-500.0,0.00018726,7]
[350093552,1737622233204,-500.0,0.00018726,7]
[350093553,1737622233216,-500.0,0.00018726,7]
[350093554,1737622233227,-500.0,0.00018726,7]
[350093555,1737622233236,-500.0,0.00018726,7]
[350093556,1737622233246,-500.0,0.00018726,7]
[350093557,1737622233256,-500.0,0.00018726,7]
[350093558,1737622233266,-500.0,0.00018726,7]
[350093559,1737622233276,-500.0,0.00018726,7]
[350093560,1737622233285,-500.0,0.00018726,7]
[350093561,1737622233296,-500.0,0.00018726,7]
[350093562,1737622233306,-500.0,0.00018726,7]
[350093563,1737622233316,-500.0,0.00018726,7]
[350093564,1737622233327,-500.0,0.00018726,7]
[350093565,1737622233336,-500.0,0.00018726,7]
[350093566,1737622233346,-500.0,0.00018726,7]
[350093567,1737622233356,-500.0,0.00018726,7]
[350093568,1737622233366,-500.0,0.00018726,7]
[350093569,1737622233375,-500.0,0.00018726,7]
[350093570,1737622233385,-500.0,0.00018726,7]
[350093571,1737622233395,-500.0,0.00018726,7]
[350093572,1737622233404,-500.0,0.00018726,7]
[350093573,1737622233413,-500.0,0.00018726,7]
[350093574,1737622233422,-500.0,0.00018726,7]
[350093575,1737622233432,-154.86194298,0.00018726,7]
[350093650,1737622243490,-345.13805702,0.00018726,7]
[350093651,1737622243500,-500.0,0.00018726,7]
[350093652,1737622243509,-500.0,0.00018726,7]
[350093653,1737622243518,-500.0,0.00018726,7]
[350093654,1737622243527,-500.0,0.00018726,7]
[350093655,1737622243536,-613.87,0.00018726,7]
[350093656,1737622243545,-500.0,0.00018726,7]
[350093657,1737622243554,-500.0,0.00018726,7]
[350093658,1737622243563,-500.0,0.00018726,7]
[350093659,1737622243572,-500.0,0.00018726,7]
[350093660,1737622243582,-500.0,0.00018726,7]
[350093661,1737622243591,-503.38,0.00018726,7]
[350093663,1737622243601,-500.0,0.00018726,2]
[350093665,1737622243610,-500.0,0.00018726,2]
[350093666,1737622243619,-500.0,0.00018726,2]
[350093667,1737622243628,-500.0,0.00018726,2]
[350093668,1737622243638,-500.0,0.00018726,2]
[350093669,1737622243648,-500.0,0.00018726,2]
[350093670,1737622243658,-500.0,0.00018726,2]
[350093671,1737622243667,-500.0,0.00018726,2]
[350093672,1737622243676,-420.539755,0.00018726,2]
[350093673,1737622243686,-420.539755,0.00018726,2]
[350093674,1737622243695,-420.539755,0.00018726,2]
[350093675,1737622243704,-420.539755,0.00018726,2]
[350093676,1737622243713,-420.539755,0.00018726,2]
[350093677,1737622243723,-420.539755,0.00018726,2]
[350093678,1737622243732,-420.539755,0.00018726,2]
[350093679,1737622243741,-420.539755,0.00018726,2]
[350093680,1737622243750,-154.6,0.00018726,2]
[350093681,1737622243759,-420.539755,0.00018745,2]
[350093682,1737622243768,-420.539755,0.00018745,2]
[350093683,1737622243778,-395.0,0.00018746,2]
[350093684,1737622243787,-420.0,0.00018832,2]
[350093685,1737622243796,-169.23289802,0.00018852,2]
[350093686,1737622243806,-500.0,0.000189,2]
[350093687,1737622243815,-500.0,0.000189,2]
[350093688,1737622243827,-4654.23473674,0.000189,2]
[350093689,1737622243837,-500.0,0.00018903,2]
[350093690,1737622243846,-790.70614036,0.00018955,2]
[350093691,1737622243856,-256.658883,0.00018985,2]
[350093692,1737622243867,-1000.0,0.00019,19]
[350093693,1737622243876,-169.23289802,0.00019078,2]
[350093694,1737622243885,-4654.23473657,0.00019107,2]
[350093695,1737622243895,-420.539755,0.00019107,2]
[350093696,1737622243907,-420.539755,0.00019107,2]
[350093697,1737622243916,-430.668,0.00019146,2]
[350093698,1737622243926,-367.66238275,0.00019173,2]
[350093699,1737622243936,-500.0,0.00019173,2]
[350093700,1737622243946,-500.0,0.00019173,2]
[350093701,1737622243956,-500.0,0.00019173,2]
[350093702,1737622243972,-500.0,0.00019173,2]
[350093703,1737622243982,-420.539755,0.00019176,2]
[350093704,1737622243993,-420.539755,0.00019176,2]
[350093705,1737622244004,-420.539755,0.00019176,2]
[350093706,1737622244014,-420.539755,0.00019176,2]
[350093707,1737622244024,-450.89508563,0.00019176,2]
[350093708,1737622244034,-500.0,0.00019176,2]
[350093709,1737622244043,-164.15450982,0.00019176,2]
[350093710,1737622244052,-500.0,0.00019176,2]
[350093711,1737622244062,-500.0,0.00019176,2]
[350093712,1737622244071,-500.0,0.00019176,2]
[350093713,1737622244082,-500.0,0.00019176,2]
[350093714,1737622244091,-500.0,0.00019176,2]
[350093715,1737622244101,-500.0,0.00019176,2]
[350093716,1737622244110,-500.0,0.00019176,2]
[350093717,1737622244121,-500.0,0.00019176,2]
[350093718,1737622244130,-500.0,0.00019176,2]
[350093719,1737622244140,-500.0,0.00019176,2]
[350093720,1737622244151,-500.0,0.00019176,2]
[350093721,1737622244160,-500.0,0.00019176,2]
[350093722,1737622244170,-161.45424328,0.00019176,2]
[350093723,1737622244179,-500.0,0.00019176,2]
[350093724,1737622244188,-500.0,0.00019176,2]
[350093725,1737622244197,-500.0,0.00019176,2]
[350093726,1737622244207,-500.0,0.00019176,2]
[350093727,1737622244216,-500.0,0.00019176,2]
[350093728,1737622244226,-635.19893268,0.00019176,2]
[350093729,1737622244235,-500.0,0.00019176,2]
[350093730,1737622244245,-500.0,0.00019176,2]
[350093731,1737622244254,-500.0,0.00019176,2]
[350093732,1737622244263,-500.0,0.00019176,2]
[350093733,1737622244273,-500.0,0.00019176,2]
[350093734,1737622244282,-500.0,0.00019176,2]
[350093735,1737622244292,-500.0,0.00019176,2]
[350093736,1737622244301,-500.0,0.00019176,2]
[350093737,1737622244310,-500.0,0.00019176,2]
[350093738,1737622244320,-500.0,0.00019176,2]
[350093739,1737622244330,-500.0,0.00019176,2]
[350093740,1737622244340,-500.0,0.00019176,2]
[350093741,1737622244349,-500.0,0.00019176,2]
[350093742,1737622244359,-500.0,0.00019176,2]
[350093743,1737622244368,-19459.96142475,0.00019177,2]
[350093744,1737622244377,-500.0,0.00019177,2]
[350093745,1737622244387,-500.0,0.00019177,2]
[350093746,1737622244396,-500.0,0.00019177,2]
[350093747,1737622244405,-500.0,0.00019177,2]
[350093748,1737622244414,-420.539755,0.00019177,2]
[350093749,1737622244424,-420.539755,0.00019177,2]
[350093750,1737622244433,-218.90000108,0.00019177,2]
[350093751,1737622244443,-500.0,0.00019177,2]
[350093752,1737622244452,-443.3485238,0.00019177,2]
[350093753,1737622244462,-2424.92428102,0.00019178,5]
[350093754,1737622244471,-28286.92510667,0.00019178,5]
[350093755,1737622244480,-618.86382557,0.00019178,2]
[350093756,1737622244489,-501.95394301,0.00019178,2]
[350093757,1737622244499,-262.67748919,0.00019178,2]
[350093758,1737622244508,-500.0,0.00019178,2]
[350093759,1737622244517,-500.0,0.00019178,7]
[350093760,1737622244527,-311.47527295,0.00019178,2]
[350093761,1737622244536,-502.59483213,0.00019178,2]
[350093762,1737622244545,-504.45672124,0.00019178,2]
[350093763,1737622244554,-500.0,0.00019178,2]
[350093764,1737622244645,-188.0,0.00019178,2]
[350093765,1737622244672,-511.6438989,0.00019178,2]
[350093766,1737622244682,-501.57031987,0.00019178,2]
[350093767,1737622244691,-503.11385911,0.00019178,2]